bitfinex/quotes_ETHUSD_20230109
["timestamp","ask_amount","ask_price","bid_price","bid_amount"]
[1673265422616,4.13490644,1320.5,1320.4,15.21258019]
[1673265422827,4.13490644,1320.5,1320.4,7.63912019]
[1673265423153,4.13490644,1320.5,1320.4,0.06566019]
[1673265423383,4.13490644,1320.5,1320.4,15.14692]
[1673265423589,4.13490644,1320.5,1320.4,7.63912019]
[1673265423981,4.13490644,1320.5,1320.4,15.21258019]
[1673265424415,4.13490644,1320.5,1320.4,7.63912019]
[1673265424629,4.13490644,1320.5,1320.4,15.21258019]
[1673265426124,4.13490644,1320.5,1320.4,22.78604019]
[1673265426308,2.82364775,1320.5,1320.4,15.21258019]
[1673265426712,10.29507121,1320.6,1320.4,15.21258019]
[1673265427185,2.82364775,1320.5,1320.4,15.21258019]
[1673265427547,2.82364775,1320.5,1320.4,7.63912019]
[1673265428104,5.0810249,1320.5,1320.4,7.63912019]
[1673265428321,6.40226974,1320.5,1320.4,15.21258019]
[1673265428534,6.40226974,1320.5,1320.4,7.63912019]
[1673265429342,6.40226974,1320.5,1320.4,15.21258019]
[1673265429809,13.97514974,1320.5,1320.4,0.06566019]
[1673265430024,29.14016974,1320.5,1320.3,7.57365]
[1673265430336,29.14016974,1320.5,1320.4,7.57346]
[1673265430504,29.14016974,1320.5,1320.4,7.63912019]
[1673265430708,29.13673153,1320.5,1320.4,7.63912019]
[1673265430913,6.39883153,1320.5,1320.4,15.21258019]
[1673265431386,6.39883153,1320.5,1320.4,7.63912019]
[1673265433014,6.39883153,1320.5,1320.4,0.06566019]
[1673265433259,6.39883153,1320.5,1320.3,22.78675019]
[1673265433472,1.69302007,1320.4,1320.3,22.78675019]
[1673265433905,1.69288749,1320.4,1320.3,15.21300019]
[1673265434114,1.69288749,1320.4,1320.3,22.78703019]
[1673265434378,1.69288749,1320.4,1320.3,15.21300019]
[1673265434714,1.69288749,1320.4,1320.3,22.78703019]
[1673265436439,2.6766655,1320.4,1320.3,22.78703019]
[1673265437058,2.6766655,1320.4,1320.3,15.21300019]
[1673265437249,0.98377801,1320.4,1320.3,15.21300019]
[1673265437464,2.6769428,1320.4,1320.3,15.21300019]
[1673265438527,0.98377801,1320.4,1320.3,0.06566019]
[1673265438738,13.6385721,1320.4,1320.2,7.64026019]
[1673265439059,13.6385721,1320.4,1320.2,15.21486019]
[1673265439060,1.69319952,1320.3,1320.2,15.21486019]
[1673265439222,1.69319952,1320.3,1320.2,22.78946019]
[1673265439428,1.69319952,1320.3,1320.2,15.21486019]
[1673265439887,2.8220083,1320.3,1320.2,22.78946019]
[1673265442001,2.8220083,1320.3,1320.2,15.21486019]
[1673265444608,2.8220083,1320.3,1320.2,22.78946019]
[1673265444826,1.12880878,1320.3,1320.2,15.21486019]
[1673265444998,2.8220083,1320.3,1320.2,15.21486019]
[1673265445369,21.70664167,1320.3,1320.2,0.06566019]
[1673265445537,14.19861167,1320.3,1320.1,7.5751]
[1673265445886,14.19861167,1320.3,1320.1,7.64076019]
[1673265445887,1.69295461,1320.2,1320.1,7.64076019]
[1673265446310,2.82136462,1320.2,1320.1,7.64076019]
[1673265446488,1.69295461,1320.2,1320.1,7.64076019]
[1673265446828,3.68211124,1320.2,1320.1,7.64076019]
[1673265448572,3.68211124,1320.2,1320.1,22.79112019]
[1673265448920,3.68211124,1320.2,1320.1,15.21594019]
[1673265450565,3.68211124,1320.2,1320.1,7.64076019]
[1673265450778,3.68211124,1320.2,1320.1,0.06566019]
[1673265451029,3.68211124,1320.2,1320.0,15.15075]
[1673265451030,3.68211124,1320.2,1320.0,15.21641019]
[1673265451304,1.12877725,1320.1,1320.0,15.21287109]
[1673265451515,1.12877725,1320.1,1320.0,15.21316109]
[1673265451983,1.12877725,1320.1,1320.0,22.78891109]
[1673265453364,1.12877725,1320.1,1320.0,7.63741109]
[1673265453509,1.12877725,1320.1,1320.0,15.21316109]
[1673265453721,1.12877725,1320.1,1320.0,22.78891109]
[1673265454157,1.12877725,1320.1,1320.0,0.06566019]
[1673265454367,1.12877725,1320.1,1320.0,7.57575]
[1673265454570,1.12877725,1320.1,1320.0,7.64141019]
[1673265454831,2.82173186,1320.1,1320.0,7.64141019]
[1673265455344,2.82173186,1320.1,1320.0,22.79291019]
[1673265455345,1.1255903,1320.1,1320.0,22.79291019]
[1673265455870,1.1255903,1320.1,1320.0,15.21716019]
[1673265456611,1.1255903,1320.1,1320.0,0.06566019]
[1673265456799,1.1255903,1320.1,1319.9,22.79353019]
[1673265457066,1.1255903,1320.1,1320.0,7.57575]
[1673265457223,1.1255903,1320.1,1320.0,7.64141019]
[1673265457415,2.81854491,1320.1,1320.0,0.06566019]
[1673265457769,1.69295461,1320.1,1319.9,15.21747019]
[1673265457979,3.08706421,1320.1,1319.9,15.21828019]
[1673265458353,5.34475055,1320.1,1319.9,15.21828019]
[1673265458557,5.41075055,1320.1,1319.9,22.79461019]
[1673265458996,5.97925055,1320.1,1319.9,22.79461019]
[1673265459217,3.72156421,1320.1,1319.9,22.79461019]
[1673265459403,3.08706421,1320.1,1319.9,22.79461019]
[1673265460767,3.08706421,1320.1,1319.9,15.21828019]
[1673265461558,3.09200329,1320.1,1319.9,15.21828019]
[1673265461731,3.09200329,1320.1,1319.9,22.79461019]
[1673265463091,9.90171141,1320.1,1319.9,0.06566019]
[1673265463281,1.69295461,1320.0,1319.8,30.89540173]
[1673265463608,2.15145778,1320.0,1319.8,22.94440173]
[1673265463810,4.87200329,1320.1,1319.8,22.94440173]
[1673265464055,35.91110329,1320.1,1319.8,22.94440173]
[1673265464272,35.97710329,1320.1,1319.8,22.94440173]
[1673265464875,32.86405461,1320.1,1319.8,26.74206237]
[1673265465082,22.767,1320.1,1319.9,3.79766064]
[1673265465300,23.89519895,1320.1,1320.0,22.72725]
[1673265465652,1.19419895,1320.1,1320.0,22.79291019]
[1673265465837,1.12819895,1320.1,1320.0,22.79291019]
[1673265466547,11.20099672,1320.1,1320.0,0.06566019]
[1673265466761,11.20099672,1320.1,1319.8,7.72551154]
[1673265466762,11.83172845,1320.1,1319.9,7.57606]
[1673265466966,2.8205704,1320.0,1319.9,15.21805019]
[1673265467420,1.12822799,1320.0,1319.9,15.21805019]
[1673265467636,2.8205704,1320.0,1319.9,15.21805019]
[1673265467962,1.12822799,1320.0,1319.9,7.64172019]
[1673265468139,2.8205704,1320.0,1319.9,7.64172019]
[1673265468364,3.3891704,1320.0,1319.9,7.64172019]
[1673265468772,2.8205704,1320.0,1319.9,7.64172019]
[1673265469382,2.8205704,1320.0,1319.9,15.21805019]
[1673265469628,1.12822799,1320.0,1319.9,22.79438019]
[1673265470432,3.46000948,1320.1,1319.9,22.79438019]
[1673265470645,2.82550948,1320.1,1319.9,22.79438019]
[1673265471062,2.82550948,1320.1,1320.0,3.79766064]
[1673265471314,1.12822799,1320.1,1320.0,18.94916064]
[1673265471527,1.12822799,1320.1,1320.0,26.59057083]
[1673265472138,2.8205704,1320.1,1320.0,0.06566019]
[1673265472352,2.54289945,1320.1,1319.8,0.21477173]
[1673265472614,1.1283972,1320.0,1319.8,26.67738218]
[1673265472772,1.1283972,1320.0,1319.8,26.74304237]
[1673265474768,1.1283972,1320.0,1319.8,22.94538173]
[1673265475981,1.1283972,1320.0,1319.8,22.94262832]
[1673265476686,1.6433337,1320.0,1319.8,22.94262832]
[1673265477137,1.1283972,1320.0,1319.8,22.94262832]
[1673265479494,11.81367869,1320.1,1319.8,34.31718896]
[1673265479702,11.81367869,1320.1,1319.8,37.13818237]
[1673265480579,11.81367869,1320.1,1319.8,34.31718896]
[1673265480580,1.1283972,1320.0,1319.8,34.31718896]
[1673265480792,1.1283972,1320.0,1319.8,26.74028896]
[1673265481020,2.82073961,1320.0,1319.8,26.74028896]
[1673265487902,1.1283972,1319.9,1319.8,0.21201832]
[1673265488113,1.1283972,1319.9,1319.8,15.30010813]
[1673265488383,9.72e-05,1319.9,1319.8,26.74032896]
[1673265488609,0.066,1320.1,1319.9,0.002]
[1673265488818,1.69234241,1320.2,1320.0,26.52491064]
[1673265488971,1.69234241,1320.2,1320.1,5.16566064]
[1673265489186,1.69234241,1320.2,1320.1,28.71518619]
[1673265489610,27.53952875,1320.3,1320.1,28.71518619]
[1673265490277,25.28184241,1320.3,1320.1,28.71518619]
[1673265490441,1.75834241,1320.3,1320.1,32.76495587]
[1673265490659,31.53834241,1320.4,1320.2,7.306986]
[1673265490867,1.75834241,1320.4,1320.3,31.67212]
[1673265491120,1.69234241,1320.4,1320.3,31.73778019]
[1673265491335,4.01602875,1320.5,1320.3,35.50475681]
[1673265491661,3.95002875,1320.5,1320.4,1.376]
[1673265491965,3.95002875,1320.5,1320.4,24.09638]
[1673265492139,1.69234241,1320.5,1320.4,24.16204019]
[1673265493307,8.90805468,1320.5,1320.4,0.06566019]
[1673265493512,8.90805468,1320.5,1320.3,15.14787]
[1673265493513,6.71636834,1320.5,1320.3,15.14787]
[1673265493740,1.69257227,1320.4,1320.3,7.63950019]
[1673265493951,3.94931464,1320.4,1320.3,7.63950019]
[1673265494770,3.94887881,1320.4,1320.3,7.63950019]
[1673265494935,11.52233881,1320.4,1320.3,0.06566019]
[1673265495150,13.63520399,1320.4,1320.1,0.06566019]
[1673265495305,3.95366754,1320.3,1320.1,15.14957]
[1673265495513,3.95366754,1320.3,1320.1,22.79023019]
[1673265495724,1.69198609,1320.2,1320.1,15.21523019]
[1673265495935,1.69198609,1320.2,1320.1,7.64030019]
[1673265496621,3.94872846,1320.2,1320.1,7.64030019]
[1673265496791,1.69198609,1320.2,1320.1,7.64030019]
[1673265496986,11.52332846,1320.2,1320.1,0.06566019]
[1673265497198,11.52332846,1320.2,1319.9,7.57794]
[1673265497199,29.28564775,1320.2,1319.9,7.57794]
[1673265497411,1.6920183,1320.1,1319.9,0.03972737]
[1673265497662,1.6920183,1320.1,1319.9,7.57827]
[1673265497886,1.6920183,1320.1,1319.9,7.61599737]
[1673265498247,1.6920183,1320.1,1319.9,15.19232737]
[1673265498483,1.12793669,1320.0,1319.9,15.19232737]
[1673265499362,1.12793669,1320.0,1319.9,22.76865737]
[1673265499909,5.53961076,1320.1,1319.9,22.76865737]
[1673265500054,3.84759246,1320.1,1319.9,22.76865737]
[1673265500262,1.12793669,1320.1,1319.9,22.76865737]
[1673265501699,17.10516875,1320.2,1320.0,3.79766064]
[1673265501700,10.76642499,1320.2,1320.0,3.79766064]
[1673265501840,0.06600669,1320.2,1320.1,15.15036]
[1673265502050,1.69202499,1320.2,1320.1,7.61290737]
[1673265502502,1.69202499,1320.2,1320.1,15.18808737]
[1673265502832,1.69202499,1320.2,1320.1,0.03772737]
[1673265502833,17.90891733,1320.2,1320.1,0.03772737]
[1673265503008,23.62380076,1320.2,1319.9,0.002]
[1673265503220,3.94915958,1320.1,1319.9,7.57826]
[1673265503447,3.94915958,1320.1,1319.9,0.03972737]
[1673265503661,11.53959007,1320.1,1319.9,0.002]
[1673265503852,5.3488477,1320.1,1319.9,7.57822]
[1673265504076,6.6488477,1320.1,1319.9,7.61594737]
[1673265504410,9.26816721,1320.0,1319.9,0.03972737]
[1673265504636,9.26816721,1320.0,1319.9,0.002]
[1673265504637,6.26283857,1320.0,1319.9,0.002]
[1673265505248,12.51958094,1320.0,1319.9,0.002]
[1673265505413,13.08818094,1320.0,1319.9,0.002]
[1673265505840,10.83143857,1320.0,1319.9,0.002]
[1673265507866,6.83143857,1320.0,1319.9,0.002]
[1673265508040,0.6346,1320.0,1319.9,7.57833]
[1673265508247,13.47902915,1320.1,1319.9,15.19238737]
[1673265508617,13.47902915,1320.1,1319.9,7.61605737]
[1673265508776,9.47592229,1320.1,1319.9,15.19238737]
[1673265509408,9.47592229,1320.1,1319.9,7.61605737]
[1673265509618,1.69241721,1320.0,1319.9,0.03972737]
[1673265509873,1.69241721,1320.0,1319.9,0.002]
[1673265510219,3.79754744,1320.0,1319.9,6.27833]
[1673265510440,3.79754744,1320.0,1319.9,6.31605737]
[1673265510625,2.10513023,1320.0,1319.9,6.31605737]
[1673265511173,2.10513023,1320.0,1319.9,0.03772737]
[1673265511383,2.10513023,1320.0,1319.8,22.9138055]
[1673265511755,3.23323412,1320.0,1319.8,22.9138055]
[1673265512519,4.92565133,1320.0,1319.8,7.7606155]
[1673265512737,20.07737133,1320.0,1319.8,0.1840855]
[1673265512984,12.56751133,1320.0,1319.8,0.14635813]
[1673265513276,1.12810389,1319.9,1319.8,0.14635813]
[1673265513991,8.70443389,1319.9,1319.8,0.14635813]
[1673265514173,15.29138926,1319.9,1319.8,0.14635813]
[1673265514859,9.40747647,1319.9,1319.8,0.14635813]
[1673265515562,7.71505926,1319.9,1319.8,0.14635813]
[1673265518959,41.20803346,1319.9,1319.8,0.14635813]
[1673265519168,43.08421625,1319.9,1319.8,0.14635813]
[1673265519507,45.907864,1319.9,1319.8,0.14635813]
[1673265519679,43.08421625,1319.9,1319.8,0.14635813]
[1673265520239,44.7747382,1319.9,1319.8,0.10841836]
[1673265521251,43.08421625,1319.9,1319.8,0.10841836]
[1673265521463,43.65112163,1319.9,1319.8,0.10841836]
[1673265521665,44.31483301,1319.9,1319.8,0.09694235]
[1673265522103,41.49118526,1319.9,1319.8,0.05900091]
[1673265522309,53.1095891,1319.9,1319.8,0.05900091]
[1673265522602,54.4845891,1319.9,1319.8,0.05900091]
[1673265523050,54.7145891,1319.9,1319.8,0.05900091]
[1673265523667,54.71420839,1319.9,1319.8,0.05900091]
[1673265524118,61.23178498,1319.9,1319.8,0.05900091]
[1673265524280,64.04542484,1319.9,1319.8,0.05900091]
[1673265525596,0.02701599,1319.7,1319.6,0.14030603]
[1673265525787,44.09542883,1319.7,1319.6,0.00030603]
[1673265526026,77.81677808,1319.7,1319.6,0.00030603]
[1673265526180,83.00334908,1319.7,1319.6,0.00030603]
[1673265528066,81.64034908,1319.7,1319.6,0.00030603]
[1673265528348,73.49765918,1319.7,1319.6,0.00030603]
[1673265528552,41.37673813,1319.7,1319.6,0.00030603]
[1673265528697,38.88100125,1319.7,1319.6,0.00030603]
[1673265528902,40.00473813,1319.7,1319.6,0.00030603]
[1673265529129,47.69787345,1319.7,1319.6,0.00030603]
[1673265529340,56.39908033,1319.7,1319.6,0.00030603]
[1673265529550,47.69787345,1319.7,1319.6,0.00030603]
[1673265530170,55.27534345,1319.7,1319.6,0.00030603]
[1673265530373,50.27534345,1319.7,1319.6,0.00030603]
[1673265530589,58.97655033,1319.7,1319.6,0.00030603]
[1673265530799,31.32274281,1319.7,1319.6,0.00030603]
[1673265531009,31.32274281,1319.7,1319.6,7.57835603]
[1673265531222,31.32274281,1319.7,1319.6,0.0380334]
[1673265531540,38.90021281,1319.7,1319.6,0.00030603]
[1673265531749,31.32274281,1319.7,1319.6,0.00030603]
[1673265532007,31.32274281,1319.7,1319.6,15.15640603]
[1673265532238,8.00364281,1319.7,1319.6,15.1941334]
[1673265532380,4.33241819,1319.7,1319.6,7.6160834]
[1673265532592,11.84388819,1319.7,1319.6,0.0380334]
[1673265532851,19.48735819,1319.7,1319.6,0.00030603]
[1673265533066,28.18856507,1319.7,1319.6,0.00030603]
[1673265533370,39.26483882,1319.7,1319.6,0.00030603]
[1673265535382,45.83390007,1319.7,1319.6,0.00030603]
[1673265535590,47.51942337,1319.7,1319.6,0.00030603]
[1673265535907,47.51992985,1319.7,1319.6,0.00030603]
[1673265536064,39.26483882,1319.7,1319.6,0.00030603]
[1673265536809,27.68736882,1319.7,1319.6,0.00030603]
[1673265537690,35.26483882,1319.7,1319.6,0.00030603]
[1673265538799,27.68736882,1319.7,1319.6,0.00030603]
[1673265539973,18.98616194,1319.7,1319.6,0.00030603]
[1673265540416,26.56363194,1319.7,1319.6,0.00030603]
[1673265540743,27.68736882,1319.7,1319.6,0.00030603]
[1673265541263,35.26483882,1319.7,1319.6,0.00030603]
[1673265541438,47.51695823,1319.7,1319.6,0.00030603]
[1673265541659,48.08565823,1319.7,1319.6,0.00030603]
[1673265542221,46.96192135,1319.7,1319.6,0.00030603]
[1673265543022,50.75958199,1319.7,1319.6,0.00030603]
[1673265543525,44.19298588,1319.7,1319.6,0.00030603]
[1673265543735,50.76100154,1319.7,1319.6,0.00030603]
[1673265544261,54.38674474,1319.7,1319.6,0.00030603]
[1673265545476,52.13600154,1319.7,1319.6,0.00030603]
[1673265546053,54.38674474,1319.7,1319.6,0.00030603]
[1673265546678,52.70122144,1319.7,1319.6,0.00030603]
[1673265547561,54.3902808,1319.7,1319.6,0.00030603]
[1673265547733,52.70122144,1319.7,1319.6,0.00030603]
[1673265547950,54.39028177,1319.7,1319.5,0.12535212]
[1673265548206,12.70412452,1319.6,1319.5,0.12535212]
[1673265548358,26.29986815,1319.6,1319.5,0.12535212]
[1673265549246,33.87791815,1319.6,1319.5,0.12535212]
[1673265549460,35.56697848,1319.6,1319.5,0.12535212]
[1673265549626,38.5673252,1319.6,1319.5,0.12535212]
[1673265549851,38.00970396,1319.6,1319.5,0.12535212]
[1673265550047,39.13611046,1319.6,1319.5,0.12535212]
[1673265550259,38.00970396,1319.6,1319.5,0.12535212]
[1673265550720,40.26044716,1319.6,1319.5,0.12535212]
[1673265550935,38.00970396,1319.6,1319.5,0.12535212]
[1673265551166,50.62100432,1319.6,1319.5,0.12535212]
[1673265551536,52.47956887,1319.6,1319.5,0.12535212]
[1673265551907,53.15694775,1319.6,1319.5,0.12535212]
[1673265552211,67.28084775,1319.6,1319.5,0.11006511]
[1673265552424,75.24324561,1319.6,1319.5,0.11006511]
[1673265552597,72.42541875,1319.6,1319.5,0.11006511]
[1673265552811,75.24324772,1319.6,1319.5,0.11006511]
[1673265553246,75.24324772,1319.6,1319.5,0.07211504]
[1673265554073,72.42541875,1319.6,1319.5,0.07211504]
[1673265554478,49.31131875,1319.6,1319.5,0.07211504]
[1673265554876,67.05580042,1319.6,1319.5,0.07211504]
[1673265555168,67.05580042,1319.6,1319.5,0.04550745]
[1673265555531,63.62842154,1319.6,1319.5,0.04550745]
[1673265556270,63.62842154,1319.6,1319.5,0.02789024]
[1673265557846,59.62842154,1319.6,1319.5,0.02789024]
[1673265558052,53.06552502,1319.6,1319.5,0.02789024]
[1673265559316,50.24714335,1319.6,1319.5,0.02789024]
[1673265560179,53.63276354,1319.6,1319.5,0.01033794]
[1673265561254,60.19642425,1319.6,1319.5,0.01033794]
[1673265561449,53.63276354,1319.6,1319.5,0.01033794]
[1673265561779,60.19642407,1319.6,1319.5,0.01033794]
[1673265561955,53.63276354,1319.6,1319.5,0.01033794]
[1673265562731,60.19565174,1319.6,1319.5,0.01033794]
[1673265562884,53.63276354,1319.6,1319.5,0.01033794]
[1673265563095,60.19568132,1319.6,1319.5,0.01033794]
[1673265563306,60.19537982,1319.6,1319.5,0.01033794]
[1673265563514,53.63276354,1319.6,1319.5,0.01033794]
[1673265563772,60.19537999,1319.6,1319.5,0.01033794]
[1673265564100,55.19537999,1319.6,1319.5,0.01033794]
[1673265564994,56.39771935,1319.6,1319.5,0.01033794]
[1673265565219,14.1899,1319.6,1319.5,7.58895794]
[1673265565438,7.88887805,1319.6,1319.5,0.04806531]
[1673265565608,7.88887805,1319.6,1319.5,15.16757794]
[1673265565827,7.88887805,1319.6,1319.5,15.20530531]
[1673265566613,5.88887805,1319.6,1319.5,15.20530531]
[1673265567186,5.88887805,1319.6,1319.5,7.58873524]
[1673265567440,5.88887805,1319.6,1319.5,0.03772737]
[1673265567651,5.88887805,1319.6,1319.5,7.57862]
[1673265567972,5.88887805,1319.6,1319.5,7.61634737]
[1673265568142,8.14713369,1319.6,1319.5,0.03772737]
[1673265568351,8.14713369,1319.6,1319.4,15.36525001]
[1673265568562,1.69361593,1319.5,1319.4,7.78611001]
[1673265568814,3.95187157,1319.5,1319.4,7.78611001]
[1673265568981,3.95187157,1319.5,1319.4,0.20710001]
[1673265569185,3.95187157,1319.5,1319.4,0.16937264]
[1673265569928,11.53049157,1319.5,1319.4,0.16937264]
[1673265570134,4.01787157,1319.5,1319.4,0.16937264]
[1673265570495,3.95187157,1319.5,1319.4,0.16937264]
[1673265570712,1.69361593,1319.5,1319.4,0.16937264]
[1673265571025,9.27223593,1319.5,1319.4,0.16937264]
[1673265571183,9.33823593,1319.5,1319.4,0.16937264]
[1673265571394,11.59612396,1319.5,1319.4,0.16937264]
[1673265572276,4.01750396,1319.5,1319.4,0.16937264]
[1673265572492,3.95150396,1319.5,1319.4,0.16937264]
[1673265573284,9.83650803,1319.5,1319.4,0.16937264]
[1673265573523,9.90250803,1319.5,1319.4,0.16937264]
[1673265574077,2.32388803,1319.5,1319.4,0.16937264]
[1673265574231,17.41512803,1319.5,1319.4,0.16937264]
[1673265574445,17.48112803,1319.5,1319.4,0.16937264]
[1673265574782,12.72471429,1319.5,1319.4,0.16937264]
[1673265576225,20.30333429,1319.5,1319.4,0.16937264]
[1673265576434,22.62999471,1319.5,1319.4,0.16937264]
[1673265576906,30.20861471,1319.5,1319.4,0.16937264]
[1673265577309,27.38640845,1319.5,1319.4,0.16937264]
[1673265578059,30.20963374,1319.5,1319.4,0.16937264]
[1673265578225,27.38640845,1319.5,1319.4,0.16937264]
[1673265580329,15.0527568,1319.5,1319.4,0.16937264]
[1673265580996,22.6313768,1319.5,1319.4,0.16937264]
[1673265581172,22.63631588,1319.5,1319.4,0.16937264]
[1673265581399,30.21493588,1319.5,1319.4,0.16937264]
[1673265581586,33.60055607,1319.5,1319.4,0.16937264]
[1673265581799,30.21493588,1319.5,1319.4,0.16937264]
[1673265582680,22.63631588,1319.5,1319.4,0.16937264]
[1673265583427,23.20511588,1319.5,1319.4,0.16937264]
[1673265583734,26.59073607,1319.5,1319.4,0.16937264]
[1673265583948,23.20511588,1319.5,1319.4,0.16937264]
[1673265584471,26.59073607,1319.5,1319.4,0.16937264]
[1673265584795,23.20511588,1319.5,1319.4,0.16937264]
[1673265584986,15.62649588,1319.5,1319.4,0.16937264]
[1673265585722,34.16935607,1319.5,1319.4,0.16937264]
[1673265585928,41.16935607,1319.5,1319.4,0.16937264]
[1673265586139,41.17155631,1319.5,1319.4,0.14533434]
[1673265587325,41.17150139,1319.5,1319.4,0.14533434]
[1673265588259,18.43564139,1319.5,1319.4,0.14533434]
[1673265588922,22.23308117,1319.5,1319.4,0.14533434]
[1673265589422,25.62068444,1319.5,1319.4,0.14533434]
[1673265591893,21.8230238,1319.5,1319.4,0.14533434]
[1673265593485,17.8230238,1319.5,1319.4,0.14533434]
[1673265596021,17.25875825,1319.5,1319.4,0.14533434]
[1673265596243,16.68995825,1319.5,1319.4,0.14533434]
[1673265598459,12.1054098,1319.5,1319.4,0.14533434]
[1673265599668,12.10047072,1319.5,1319.4,0.14533434]
[1673265599924,14.35956769,1319.5,1319.4,0.14533434]
[1673265600087,14.35956769,1319.5,1319.4,0.11200086]
[1673265600776,10.23081858,1319.5,1319.4,1.48600086]
[1673265600957,10.23081858,1319.5,1319.4,3.02675536]
[1673265601165,7.97172161,1319.5,1319.4,3.02675536]
[1673265602114,7.97172161,1319.5,1319.4,2.86100086]
[1673265602305,8.53622997,1319.5,1319.4,0.11200086]
[1673265602516,11.35956769,1319.5,1319.4,0.11200086]
[1673265602727,12.26471978,1319.5,1319.4,0.11200086]
[1673265602936,12.26471916,1319.5,1319.4,0.11200086]
[1673265603386,13.8299514,1319.5,1319.4,0.11200086]
[1673265603599,11.57089024,1319.5,1319.4,0.11200086]
[1673265603805,8.74755252,1319.5,1319.4,0.11200086]
[1673265604057,11.57131482,1319.5,1319.4,0.11200086]
[1673265604827,9.07714092,1319.5,1319.4,0.11200086]
[1673265605036,9.14314092,1319.5,1319.4,0.11200086]
[1673265605304,7.57790868,1319.5,1319.4,0.11200086]
[1673265606352,7.57790868,1319.5,1319.4,0.07866645]
[1673265607380,7.57790868,1319.5,1319.4,0.04527458]
[1673265611343,7.57790868,1319.5,1319.4,0.01183461]
[1673265611783,9.83788756,1319.5,1319.4,0.01183461]
[1673265612439,9.83788756,1319.5,1319.3,0.17154415]
[1673265612665,1.695246,1319.4,1319.3,0.17154415]
[1673265612811,1.695246,1319.4,1319.3,1.54554415]
[1673265612812,2.82538608,1319.4,1319.3,1.54554415]
[1673265613157,1.13014008,1319.4,1319.3,2.7601642]
[1673265613374,1.13014008,1319.4,1319.3,2.74339236]
[1673265616954,1.13014008,1319.4,1319.3,6.541053]
[1673265617272,7.57953246,1319.5,1319.3,6.57878037]
[1673265617636,7.57953246,1319.5,1319.4,24.1016]
[1673265617837,7.57953246,1319.5,1319.4,27.82791741]
[1673265618469,7.57953246,1319.5,1319.4,20.24871741]
[1673265620381,7.57953246,1319.5,1319.4,12.66951741]
[1673265620656,7.57953246,1319.5,1319.4,20.24871741]
[1673265621271,5.88428646,1319.5,1319.4,27.82791741]
[1673265623377,4.75414638,1319.5,1319.4,27.82791741]
[1673265623588,4.68814638,1319.5,1319.4,27.82791741]
[1673265623803,4.68814638,1319.5,1319.4,20.24871741]
[1673265625218,5.81828646,1319.5,1319.4,20.24871741]
[1673265625522,4.75414638,1319.5,1319.4,20.24871741]
[1673265625832,4.68814638,1319.5,1319.4,20.24871741]
[1673265626231,5.81828646,1319.5,1319.4,20.24871741]
[1673265626448,5.88428646,1319.5,1319.4,20.24871741]
[1673265626625,4.75414638,1319.5,1319.4,20.24871741]
[1673265626833,5.81828646,1319.5,1319.4,12.66951741]
[1673265627047,5.88428646,1319.5,1319.4,12.66951741]
[1673265627359,5.88428646,1319.5,1319.4,20.24871741]
[1673265629458,5.88428646,1319.5,1319.4,27.82791741]
[1673265629676,5.88428646,1319.5,1319.4,20.24871741]
[1673265629884,5.88428646,1319.5,1319.4,27.82791741]
[1673265630097,5.88428646,1319.5,1319.4,20.24871741]
[1673265631369,7.57953246,1319.5,1319.4,20.24871741]
[1673265631595,7.57953246,1319.5,1319.4,0.03772737]
[1673265631803,7.57953246,1319.5,1319.3,0.15477231]
[1673265631804,16.28799126,1319.5,1319.3,0.15477231]
[1673265632020,2.8231003,1319.4,1319.3,0.15477231]
[1673265633150,2.8231003,1319.4,1319.3,15.31431231]
[1673265633379,2.8231003,1319.4,1319.3,17.79899201]
[1673265633769,2.8231003,1319.4,1319.3,17.69899201]
[1673265634449,2.8231003,1319.4,1319.3,15.25203968]
[1673265634759,2.8231003,1319.4,1319.3,7.67226968]
[1673265635971,2.8231003,1319.4,1319.3,9.04626968]
[1673265636182,2.8231003,1319.4,1319.3,12.84493032]
[1673265636392,1.12924012,1319.4,1319.3,28.00447032]
[1673265636649,1.12924012,1319.4,1319.3,31.71665571]
[1673265641581,7.57796374,1319.5,1319.3,31.71665571]
[1673265641771,7.57796374,1319.5,1319.4,5.17266064]
[1673265642118,9.27295378,1319.5,1319.4,27.94798801]
[1673265642325,9.27295378,1319.5,1319.4,31.87745958]
[1673265643547,7.57796374,1319.5,1319.4,31.87745958]
[1673265643756,9.27291468,1319.5,1319.4,31.87745958]
[1673265647259,9.27291468,1319.5,1319.4,27.94798801]
[1673265647587,8.14367456,1319.5,1319.4,27.94798801]
[1673265648181,8.14367456,1319.5,1319.4,26.57298801]
[1673265648733,1.13070561,1319.5,1319.4,30.69398801]
[1673265648949,2.8237623,1319.7,1319.6,1.12868379]
[1673265648950,1.19686673,1319.7,1319.6,1.12868379]
[1673265649156,1.13086673,1319.7,1319.6,22.82100443]
[1673265649477,1.13086673,1319.7,1319.6,23.61705716]
[1673265649692,1.13086673,1319.7,1319.6,27.24968044]
[1673265650074,1.13086673,1319.7,1319.6,34.82773044]
[1673265654744,1.13004821,1319.7,1319.6,34.82773044]
[1673265654961,1.13005066,1319.7,1319.6,34.82773044]
[1673265657047,2.25997097,1319.7,1319.6,34.82773044]
[1673265664100,3.9539137,1319.7,1319.6,34.82773044]
[1673265664312,2.25997097,1319.7,1319.6,34.82773044]
[1673265664697,3.9539137,1319.7,1319.6,34.82773044]
[1673265664902,5.6481456,1319.7,1319.6,34.82773044]
[1673265665118,5.7141456,1319.7,1319.6,34.82773044]
[1673265665629,0.066,1319.7,1319.6,33.69904665]
[1673265665840,10.2484721,1319.8,1319.6,33.69904665]
[1673265666054,10.2484721,1319.8,1319.7,1.375]
[1673265666290,1.7601721,1319.8,1319.7,16.52994]
[1673265666506,1.6941721,1319.8,1319.7,16.56766737]
[1673265667347,3.38841986,1319.8,1319.7,16.56766737]
[1673265668933,5.60186909,1319.8,1319.7,15.19266737]
[1673265669094,5.66786909,1319.8,1319.7,15.19266737]
[1673265669650,5.66786909,1319.8,1319.7,22.77013737]
[1673265670495,3.40895499,1319.8,1319.7,22.77013737]
[1673265670822,5.60186909,1319.8,1319.7,22.77013737]
[1673265671043,5.66786909,1319.8,1319.7,22.77013737]
[1673265671722,5.66786909,1319.8,1319.7,15.19266737]
[1673265672298,5.66786909,1319.8,1319.7,18.46115604]
[1673265672611,5.66770895,1319.8,1319.7,18.46115604]
[1673265672928,5.66770895,1319.8,1319.7,31.55928668]
[1673265673086,2.84417843,1319.8,1319.7,32.31761204]
[1673265673297,2.77817843,1319.8,1319.7,32.31761204]
[1673265675980,2.77817843,1319.8,1319.7,34.04561204]
[1673265676888,3.90786146,1319.8,1319.7,34.04561204]
[1673265677736,5.60215371,1319.8,1319.7,31.56428668]
[1673265677966,5.66815371,1319.8,1319.7,31.56428668]
[1673265678177,3.97386146,1319.8,1319.7,31.56428668]
[1673265678401,3.90786146,1319.8,1319.7,31.56428668]
[1673265682065,5.60287447,1319.8,1319.7,31.56428668]
[1673265682247,3.97386146,1319.8,1319.7,31.56428668]
[1673265682455,3.90786146,1319.8,1319.7,31.56428668]
[1673265684464,5.60287447,1319.8,1319.7,31.56428668]
[1673265684696,5.66887447,1319.8,1319.7,31.56428668]
[1673265687296,4.53919144,1319.8,1319.7,31.56428668]